[Event "RUDAR VI-GM 2024"]
[Site "Pozarevac"]
[Date "2024.02.12"]
[Round "1.1"]
[White "Apaar Saxena"]
[Black "Krishna Teja, N."]
[Result "0-1"]
[ECO "E05"]
[WhiteElo "2150"]
[BlackElo "2349"]
[Annotator "TA"]
[PlyCount "94"]
[EventDate "2024.02.12"]
[EventType "tourn"]
[EventCountry "SRB"]
[SourceTitle "playchess.com"]
[Source "ChessBase"]
[SourceQuality "1"]
[TimeControl "5400+30"]

{[%evp 13,94,4,14,14,14,20,43,31,21,21,27,23,23,-70,-47,-97,-86,-91,-85,-193,-203,-208,-195,-209,-175,-175,-173,-172,-124,-112,-118,-160,-133,-116,-119,-120,240,241,771,-195,-85,-200,-122,-240,-153,-154,-134,-248,-246,-269,-220,-338,-340,-333,-344,-467,-433,-474,-465,-639,-645,-677,-664,-645,-636,-1506,-1438,-1560,-1555,-1559,-1644,-2310,-1822,-2066,-2057,-5704,-5447,-29972,-29972,-29984,-29979,-29988,-29989]} 1. d4 {[%emt 0:00:04]} Nf6 {[%emt 0:16:07]} 2. c4 {[%emt 0:00:16]} e6 {[%emt 0:00:03]} 3. Nf3 {[%emt 0:00:12]} d5 {[%emt 0:00:11]} 4. g3 {[%emt 0:00:09]} Be7 {[%emt 0:00:37]} 5. Bg2 {[%emt 0:00:10]} O-O {[%emt 0:00:05]} 6. O-O {[%emt 0:00:11]} dxc4 {[%emt 0:00:33]} 7. Qc2 {[%emt 0:01:23]} b5 {[%emt 0:00:34]} 8. a4 {[%emt 0:00:10]} b4 {[%emt 0:00:28]} 9. Nfd2 {[%emt 0:00:16]} (9. Qxc4 Ba6 10. Qc2 Nbd7) 9... Nd5 {[%emt 0:00:26]} 10. Nxc4 {[%emt 0:00:13] White is slightly better.} ({Of course not} 10. Qxc4 Ba6 11. Qc2 c5 (11... Bxe2 12. Re1 $17) 12. dxc5 Nd7 $17) 10... c5 {[%emt 0:00:20]} 11. dxc5 {[%emt 0:01:35]} Bxc5 {[%emt 0:00:06]} 12. Rd1 {[%emt 0:09:08]} Nd7 {[%emt 0:00:24]} 13. a5 {[%emt 0:10:06]} ({Much weaker is} 13. Bxd5 exd5 14. Be3 Bb7 (14... dxc4 15. Bxc5 Nxc5 16. Rxd8 $16) 15. Bxc5 Nxc5 $17) (13. e4 $11 N5b6 14. Ne5) 13... Ba6 $15 {[%emt 0:10:59]} 14. e4 {[%emt 0:05:02] [#]} (14. e3 $1 $15) 14... Rc8 $1 {[%emt 0:00:35] ...N5f6 is the strong threat.} 15. b3 {[%emt 0:14:41]} N5f6 {[%emt 0:03:59] Threatens to win with ...Ng4.} 16. Bb2 {[%emt 0:07:40]} (16. Qe2 $17) 16... Ng4 $19 {[%emt 0:02:38]} 17. Rf1 {[%emt 0:01:54] [#]} Nde5 $1 {[%emt 0:14:54][%mdl 512]} 18. Bxe5 {[%emt 0:17:18]} Bxc4 {[%emt 0:13:37]} 19. bxc4 {[%emt 0:01:14]} Nxe5 {[%emt 0:00:02]} 20. Nd2 {[%emt 0:00:19] White is weak on the dark squares} Qd3 {[%emt 0:06:16] Against Nb3} (20... Bd4 $19 21. Rac1 h5 (21... Qxa5 $2 22. Nb3 $19)) 21. Qxd3 $17 {[%emt 0:02:10]} Nxd3 {[%emt 0:00:03]} 22. Nb3 {[%emt 0:00:18]} Bxf2+ {[%emt 0:01:14]} 23. Rxf2 {[%emt 0:00:22]} Nxf2 {[%emt 0:00:05]} 24. Kxf2 {[%emt 0:00:11] c5 would now be deadly.} Rc6 {[%emt 0:28:14][%mdl 8192]} (24... Rxc4 $17 {and life is bright. aiming for ...Rc2+.} 25. Rb1 Rfc8 (25... Rc2+ $2 26. Kg1 $19)) 25. c5 $18 Rxc5 $2 {[%emt 0:00:00]} (25... f6 26. Rd1 Rfc8) 26. Ra2 $4 {[%emt 0:09:00][%mdl 8192]} (26. Nxc5 $18 {was the only winning move.} g5 27. Nb3) 26... Rc4 {[%emt 0:00:00]} (26... Rc3 $19 27. Rb2 Rfc8) 27. Rd2 {[%emt 0:15:46]} (27. Nd2 $17 Rc3 28. Rb2) 27... Rfc8 {[%emt 0:00:00] Strongly threatening ...Rc3.} 28. Ke1 {[%emt 0:02:07]} (28. Bf3 $17 {is a better defense.}) 28... Rc2 {[%emt 0:00:00]} 29. Bf1 {[%emt 0:01:38]} Kf8 {[%emt 0:00:00]} 30. Rxc2 {[%emt 0:00:36]} (30. Kd1 $17 Rxd2+ 31. Kxd2) 30... Rxc2 $19 {[%emt 0:00:00]} 31. Nd2 {[%emt 0:00:03]} Ke7 {[%emt 0:00:00]} 32. Bc4 {[%emt 0:00:42]} (32. Bd3 $142 Rc3 33. Ke2) 32... Kd6 {[%emt 0:00:00]} 33. Kd1 {[%emt 0:01:02]} Rc3 {[%emt 0:00:00]} 34. Ke2 {[%emt 0:00:30]} Kc5 {[%emt 0:00:00]} 35. Bd3 {[%emt 0:00:39]} b3 {[%emt 0:00:00]} 36. Bb1 {[%emt 0:00:51]} e5 {[%emt 0:00:00]} 37. Bd3 {[%emt 0:00:27]} f6 {[%emt 0:00:00]} 38. a6 {[%emt 0:00:10]} Kb4 {[%emt 0:00:00]} 39. Nb1 {[%emt 0:00:09] [#]} Rc2+ {[%emt 0:00:00][%mdl 512]} 40. Ke3 {[%emt 0:00:41]} Rxh2 {[%emt 0:00:00]} 41. g4 {[%emt 0:00:13]} b2 {[%emt 0:00:00]} 42. Nd2 {[%emt 0:00:11]} Rh3+ {[%emt 0:00:00]} 43. Ke2 {[%emt 0:00:01]} Rg3 {[%emt 0:00:00]} 44. Nb1 {[%emt 0:00:33]} Rxg4 {[%emt 0:00:00]} 45. Kd2 {[%emt 0:00:09]} Rg2+ {[%emt 0:00:00] Black mates.} 46. Be2 {[%emt 0:00:06]} Kb3 {[%emt 0:00:00]} 47. Nc3 {[%emt 0:00:16] [#]} Rxe2+ $1 {[%emt 0:00:00] Weighted Error Value: White=0.97/Black=0.25 (precise) .  Loses game:     	---       	Black=1      Missed win:     	White=1     	---        Mistake:       	White=6     	Black=3      Inaccurate:     	White=3     	Black=2      OK:         	White=9     	Black=10     Best:        	White=2     	Black=1} 0-1

[Event "RUDAR VI-GM 2024"]
[Site "Pozarevac"]
[Date "2024.02.12"]
[Round "1.2"]
[White "Zemlyanskii, Ivan"]
[Black "Ahmadzada, Ahmad"]
[Result "1-0"]
[ECO "D30"]
[WhiteElo "2492"]
[BlackElo "2501"]
[Annotator "RC"]
[PlyCount "135"]
[EventDate "2024.02.12"]
[EventType "tourn"]
[EventCountry "SRB"]
[SourceTitle "playchess.com"]
[Source "ChessBase"]
[SourceQuality "1"]
[TimeControl "5400+30"]

1. d4 {[%emt 0:00:02]} Nf6 {[%emt 0:00:07]} 2. c4 {[%emt 0:00:04]} e6 {[%emt 0:00:04]} 3. Nf3 {[%emt 0:00:13]} c5 {[%emt 0:00:06]} 4. e3 {[%emt 0:00:06]} d5 {[%emt 0:02:25]} 5. cxd5 {[%emt 0:02:07]} exd5 {[%emt 0:00:18]} 6. Bb5+ {[%emt 0:00:03]} Bd7 {[%emt 0:07:50]} 7. Bxd7+ {[%emt 0:00:24]} Nbxd7 {[%emt 0:04:57]} 8. dxc5 {[%emt 0:01:38]} Bxc5 {[%emt 0:02:07]} 9. O-O {[%emt 0:00:07]} O-O {[%emt 0:01:39]} 10. Nc3 {[%emt 0:00:21]} Nb6 {[%emt 0:03:20]} 11. b3 {[%emt 0:00:10]} Qe7 {[%emt 0:02:59]} 12. a3 {[%emt 0:13:17]} Rac8 {[%emt 0:07:16]} 13. Nb5 {[%emt 0:08:36]} Nbd7 {[%emt 0:08:30]} 14. Bb2 {[%emt 0:01:30]} a6 {[%emt 0:01:54]} 15. Nbd4 {[%emt 0:04:04]} Rfd8 {[%emt 0:03:53]} 16. Qe2 {[%emt 0:01:47]} Qe8 {[%emt 0:51:05]} 17. Rfd1 {[%emt 0:06:36]} Bf8 {[%emt 0:00:00]} 18. Nc2 {[%emt 0:10:08]} Qe6 {[%emt 0:00:00]} 19. Nce1 {[%emt 0:05:59]} Nc5 {[%emt 0:00:00]} 20. Rab1 {[%emt 0:04:23]} Nfe4 {[%emt 0:00:00]} 21. Ba1 {[%emt 0:05:35]} Be7 {[%emt 0:00:00]} 22. Nd3 {[%emt 0:04:30]} Nxd3 {[%emt 0:00:00]} 23. Rxd3 {[%emt 0:04:04]} Bf6 {[%emt 0:00:00]} 24. Nd4 {[%emt 0:00:34]} Qb6 {[%emt 0:00:00]} 25. Nf5 {[%emt 0:05:50]} g6 {[%emt 0:00:00]} 26. Nd4 {[%emt 0:08:28]} Rc7 {[%emt 0:00:00]} 27. b4 {[%emt 0:01:21]} Rdc8 {[%emt 0:00:00]} 28. Rbd1 {[%emt 0:00:50]} h5 {[%emt 0:00:00]} 29. Qf3 {[%emt 0:01:19]} Bg7 {[%emt 0:00:00]} 30. h3 {[%emt 0:03:48]} Rc4 {[%emt 0:00:00]} 31. Ne2 {[%emt 0:01:01]} Bxa1 {[%emt 0:00:00]} 32. Rxa1 {[%emt 0:00:02]} Qf6 {[%emt 0:00:24]} 33. Rad1 {[%emt 0:03:53]} Qxf3 {[%emt 0:00:30]} 34. gxf3 {[%emt 0:00:01]} Nf6 {[%emt 0:01:24]} 35. Nf4 {[%emt 0:00:35]} Rc3 {[%emt 0:01:31]} 36. Kg2 {[%emt 0:00:46]} Rxd3 {[%emt 0:00:51]} 37. Rxd3 {[%emt 0:04:48]} b5 {[%emt 0:01:26]} 38. Nxd5 {[%emt 0:00:00]} Nxd5 {[%emt 0:00:12]} 39. Rxd5 {[%emt 0:00:00]} Rc3 {[%emt 0:00:09]} 40. a4 {[%emt 0:00:00]} bxa4 {[%emt 0:00:16]} 41. Ra5 {[%emt 0:00:00]} a3 {[%emt 0:00:16]} 42. Rxa6 {[%emt 0:00:00]} Rb3 {[%emt 0:00:05]} 43. f4 {[%emt 0:00:00]} Rxb4 {[%emt 0:00:29]} 44. Rxa3 {[%emt 0:00:00]} Rb5 {[%emt 0:00:34]} 45. Kg3 {[%emt 0:00:00]} Kg7 {[%emt 0:01:05]} 46. e4 {[%emt 0:00:00]} Kf6 {[%emt 0:00:52]} 47. Ra6+ {[%emt 0:00:00]} Ke7 {[%emt 0:01:05]} 48. Ra3 {[%emt 0:00:19]} Kf6 {[%emt 0:00:24]} 49. Rc3 {[%emt 0:00:08]} Ra5 {[%emt 0:00:36]} 50. Rd3 {[%emt 0:00:13]} Ke6 {[%emt 0:00:51]} 51. Kh4 {[%emt 0:00:37]} Ra2 {[%emt 0:00:45]} 52. Kg3 {[%emt 0:00:39]} Ra5 {[%emt 0:00:13]} 53. Rb3 {[%emt 0:00:23]} Kf6 {[%emt 0:00:16]} 54. Rb6+ {[%emt 0:00:17]} Ke7 {[%emt 0:00:13]} 55. Rb8 {[%emt 0:00:13]} Rc5 {[%emt 0:01:04]} 56. Rh8 {[%emt 0:00:33]} Kf6 {[%emt 0:00:06]} 57. Re8 {[%emt 0:01:46]} Rb5 {[%emt 0:01:00]} 58. h4 {[%emt 0:00:07]} Rc5 {[%emt 0:01:01]} 59. f3 {[%emt 0:00:35]} Rc4 {[%emt 0:02:09]} 60. Re5 {[%emt 0:00:22]} Rc1 {[%emt 0:01:03]} 61. Rg5 {[%emt 0:01:32]} Rh1 {[%emt 0:00:55]} 62. Rb5 {[%emt 0:01:47]} Rg1+ {[%emt 0:00:29]} 63. Kh2 {[%emt 0:00:15]} Rc1 {[%emt 0:00:37]} 64. Kg2 {[%emt 0:00:18]} Rd1 {[%emt 0:00:16]} 65. Rc5 {[%emt 0:01:19]} Rb1 {[%emt 0:00:06]} 66. f5 {[%emt 0:00:29]} Ra1 {[%emt 0:00:46]} 67. Rc6+ {[%emt 0:00:12]} Kg7 {[%emt 0:00:58]} 68. f6+ {[%emt 0:00:43]} 1-0

[Event "RUDAR VI-GM 2024"]
[Site "Pozarevac"]
[Date "2024.02.12"]
[Round "1.3"]
[White "Grover, Sahaj"]
[Black "Garifullina, Leya"]
[Result "1-0"]
[ECO "C86"]
[WhiteElo "2503"]
[BlackElo "2422"]
[Annotator "RC"]
[PlyCount "85"]
[EventDate "2024.02.12"]
[EventType "tourn"]
[EventCountry "SRB"]
[SourceTitle "playchess.com"]
[Source "ChessBase"]
[SourceQuality "1"]
[TimeControl "5400+30"]

1. e4 {[%emt 0:00:51]} e5 {[%emt 0:00:19]} 2. Nf3 {[%emt 0:00:10]} Nc6 {[%emt 0:00:06]} 3. Bb5 {[%emt 0:00:08]} a6 {[%emt 0:00:05]} 4. Ba4 {[%emt 0:00:05]} Nf6 {[%emt 0:00:05]} 5. Qe2 {[%emt 0:04:01]} Be7 {[%emt 0:02:47]} 6. O-O {[%emt 0:00:12]} b5 {[%emt 0:00:32]} 7. Bb3 {[%emt 0:00:05]} d6 {[%emt 0:00:32]} 8. c3 {[%emt 0:00:06]} O-O {[%emt 0:00:50]} 9. Rd1 {[%emt 0:00:04]} Na5 {[%emt 0:08:38]} 10. Bc2 {[%emt 0:00:12]} c5 {[%emt 0:01:48]} 11. d4 {[%emt 0:00:06]} cxd4 {[%emt 0:00:58]} 12. cxd4 {[%emt 0:00:06]} Qc7 {[%emt 0:00:51]} 13. Nc3 {[%emt 0:03:49]} Bg4 {[%emt 0:02:34]} 14. a3 {[%emt 0:22:45]} exd4 {[%emt 0:03:37]} 15. Rxd4 {[%emt 0:00:12]} Nc6 {[%emt 0:01:00]} 16. Rd1 {[%emt 0:00:05]} Ne5 {[%emt 0:01:54]} 17. Bf4 {[%emt 0:00:07]} Nxf3+ {[%emt 0:06:24]} 18. gxf3 {[%emt 0:00:05]} Be6 {[%emt 0:02:08]} 19. Rac1 {[%emt 0:00:29]} Qb6 {[%emt 0:05:34]} 20. Be3 {[%emt 0:03:14]} Qb7 {[%emt 0:01:40]} 21. f4 {[%emt 1:04:08]} Rae8 {[%emt 0:06:02]} 22. f3 {[%emt 0:00:00]} Nh5 {[%emt 0:06:56]} 23. f5 {[%emt 0:00:00]} Bc4 {[%emt 0:01:03]} 24. Qf2 {[%emt 0:00:00]} Bf6 {[%emt 0:03:19]} 25. Rxd6 {[%emt 0:00:00]} Be5 {[%emt 0:07:53]} 26. Rd2 {[%emt 0:02:30]} Qb8 {[%emt 0:35:55]} 27. Qh4 {[%emt 0:00:00]} g6 {[%emt 0:00:30]} 28. Rcd1 {[%emt 0:00:00]} Rc8 {[%emt 0:00:00]} 29. Rd7 {[%emt 0:00:00]} b4 {[%emt 0:00:00]} 30. Ba7 {[%emt 0:00:00]} Qa8 {[%emt 0:00:00]} 31. axb4 {[%emt 0:00:00]} Bb5 {[%emt 0:00:00]} 32. Bd4 {[%emt 0:00:00]} Bxd7 {[%emt 0:00:00]} 33. Bxe5 {[%emt 0:00:00]} Rfe8 {[%emt 0:00:00]} 34. Bd4 {[%emt 0:00:00]} Qb7 {[%emt 0:00:00]} 35. Nd5 {[%emt 0:00:00]} Rc4 {[%emt 0:00:00]} 36. Nf6+ {[%emt 0:00:00]} Nxf6 {[%emt 0:00:00]} 37. Qxf6 {[%emt 0:00:00]} Rxd4 {[%emt 0:00:00]} 38. Rxd4 {[%emt 0:00:00]} Bb5 {[%emt 0:00:00]} 39. fxg6 {[%emt 0:00:00]} hxg6 {[%emt 0:00:00]} 40. Bb3 {[%emt 0:00:00]} Qc7 {[%emt 0:04:31]} 41. Qxg6+ {[%emt 0:00:00]} Kh8 {[%emt 0:00:14]} 42. Qh6+ {[%emt 0:00:00]} Kg8 {[%emt 0:00:04]} 43. e5 {[%emt 0:00:00]} 1-0

[Event "RUDAR VI-GM 2024"]
[Site "Pozarevac"]
[Date "2024.02.12"]
[Round "1.4"]
[White "Sutormin, Danila"]
[Black "Kotronias, Vasilios"]
[Result "0-1"]
[ECO "E94"]
[WhiteElo "2353"]
[BlackElo "2453"]
[Annotator "RC"]
[PlyCount "114"]
[EventDate "2024.02.12"]
[EventType "tourn"]
[EventCountry "SRB"]
[SourceTitle "playchess.com"]
[Source "ChessBase"]
[SourceQuality "1"]
[TimeControl "5400+30"]

1. d4 {[%emt 0:06:00]} Nf6 {[%emt 0:00:04]} 2. c4 {[%emt 0:00:08]} g6 {[%emt 0:00:07]} 3. Nc3 {[%emt 0:00:08]} Bg7 {[%emt 0:00:04]} 4. e4 {[%emt 0:00:06]} d6 {[%emt 0:00:04]} 5. Nf3 {[%emt 0:00:13]} O-O {[%emt 0:00:10]} 6. Be2 {[%emt 0:00:07]} e5 {[%emt 0:00:11]} 7. O-O {[%emt 0:00:10]} Bg4 {[%emt 0:00:23]} 8. d5 {[%emt 1:27:38]} a5 {[%emt 0:00:07]} 9. Ne1 {[%emt 0:00:00]} Bd7 {[%emt 0:01:16]} 10. Nd3 {[%emt 0:00:00]} Na6 {[%emt 0:00:09]} 11. a3 {[%emt 0:00:00]} a4 {[%emt 0:01:10]} 12. f3 {[%emt 0:00:00]} Qe8 {[%emt 0:01:46]} 13. Kh1 {[%emt 0:00:00]} b6 {[%emt 0:00:26]} 14. Nb5 {[%emt 0:00:00]} Bxb5 {[%emt 0:00:06]} 15. cxb5 {[%emt 0:00:00]} Nc5 {[%emt 0:00:05]} 16. Nxc5 {[%emt 0:00:00]} dxc5 {[%emt 0:00:59]} 17. d6 {[%emt 0:00:00]} c6 {[%emt 0:10:21]} 18. b4 {[%emt 0:00:00]} cxb5 {[%emt 0:05:14]} 19. d7 {[%emt 0:00:00]} Qxd7 {[%emt 0:00:35]} 20. Qxd7 {[%emt 0:00:00]} Nxd7 {[%emt 0:00:03]} 21. Bxb5 {[%emt 0:00:00]} Nb8 {[%emt 0:02:28]} 22. bxc5 {[%emt 0:00:00]} bxc5 {[%emt 0:00:14]} 23. Rb1 {[%emt 0:00:00]} Rc8 {[%emt 0:03:02]} 24. Bc4 {[%emt 0:00:00]} Nc6 {[%emt 0:03:52]} 25. Rb5 {[%emt 0:00:00]} Rab8 {[%emt 0:03:19]} 26. f4 {[%emt 0:02:41]} Rxb5 {[%emt 0:00:22]} 27. Bxb5 {[%emt 0:00:02]} exf4 {[%emt 0:00:18]} 28. Bxf4 {[%emt 0:00:53]} Ne5 {[%emt 0:03:10]} 29. Rc1 {[%emt 0:02:23]} h5 {[%emt 0:01:06]} 30. g3 {[%emt 0:00:56]} Ng4 {[%emt 0:02:54]} 31. Rc4 {[%emt 0:01:50]} Bd4 {[%emt 0:00:47]} 32. Kg2 {[%emt 0:00:35]} g5 {[%emt 1:01:38]} 33. h3 {[%emt 0:01:18]} gxf4 {[%emt 0:00:00]} 34. hxg4 {[%emt 0:00:06]} Rb8 {[%emt 0:00:00]} 35. Bxa4 {[%emt 0:00:11]} Rb1 {[%emt 0:00:00]} 36. gxh5 {[%emt 0:02:23]} Rg1+ {[%emt 0:00:00]} 37. Kf3 {[%emt 0:00:25]} fxg3 {[%emt 0:00:00]} 38. Rc2 {[%emt 0:00:31]} Ra1 {[%emt 0:00:00]} 39. Bc6 {[%emt 0:00:23]} Rxa3+ {[%emt 0:00:00]} 40. Kf4 {[%emt 0:00:45]} f6 {[%emt 0:00:00]} 41. Kg4 {[%emt 0:00:29]} Kg7 {[%emt 0:00:00]} 42. Bd5 {[%emt 0:00:15]} Kh6 {[%emt 0:00:00]} 43. Bf7 {[%emt 0:00:06]} Bf2 {[%emt 0:00:00]} 44. Kh3 {[%emt 0:00:02]} Kg5 {[%emt 0:00:00]} 45. Rb2 {[%emt 0:01:05]} Ra1 {[%emt 0:00:00]} 46. Rb6 {[%emt 0:01:06]} Re1 {[%emt 0:00:00]} 47. Rb8 {[%emt 0:00:31]} Kf4 {[%emt 0:00:00]} 48. e5 {[%emt 0:00:24]} Rh1+ {[%emt 0:00:00]} 49. Kg2 {[%emt 0:00:01]} Rh2+ {[%emt 0:00:00]} 50. Kf1 {[%emt 0:00:01]} Kxe5 {[%emt 0:00:00]} 51. Rh8 {[%emt 0:00:59]} Be3 {[%emt 0:00:00]} 52. Re8+ {[%emt 0:00:16]} Kf4 {[%emt 0:00:00]} 53. Bd5 {[%emt 0:00:04]} f5 {[%emt 0:00:00]} 54. Bg2 {[%emt 0:00:29]} Rxh5 {[%emt 0:00:00]} 55. Ke2 {[%emt 0:00:08]} Rh2 {[%emt 0:00:00]} 56. Kf1 {[%emt 0:00:13]} Rh6 {[%emt 0:00:00]} 57. Ke2 {[%emt 0:00:04]} Rb6 {[%emt 0:00:00]} 0-1

[Event "RUDAR VI-GM 2024"]
[Site "Pozarevac"]
[Date "2024.02.12"]
[Round "1.5"]
[White "Velpula Sarayu"]
[Black "Volkov, Dmitriy"]
[Result "1-0"]
[ECO "B33"]
[WhiteElo "2444"]
[BlackElo "2268"]
[Annotator "TA"]
[PlyCount "83"]
[EventDate "2024.02.12"]
[EventType "tourn"]
[EventCountry "SRB"]
[SourceTitle "playchess.com"]
[Source "ChessBase"]
[SourceQuality "1"]
[TimeControl "5400+30"]

{[%evp 18,83,23,21,14,16,10,28,22,25,9,22,17,9,51,45,64,43,76,74,122,106,136,132,204,117,115,111,129,136,120,127,121,82,100,77,87,79,77,81,82,78,91,0,18,17,8,8,8,3,17,17,47,47,70,78,95,68,54,43,50,43,43,43,240,181,266,254]} 1. e4 {[%emt 0:00:24]} c5 {[%emt 0:00:06]} 2. Nf3 {[%emt 0:00:28][%cal Bg1f3,Bf3d4,Bd4b5][%mdl 32]} Nc6 {[%emt 0:00:05]} 3. d4 {[%emt 0:00:32]} cxd4 {[%emt 0:00:05]} 4. Nxd4 {[%emt 0:00:31]} Nf6 {[%emt 0:00:05]} 5. Nc3 {[%emt 0:00:30]} e5 {[%emt 0:00:06]} 6. Ndb5 {[%emt 0:00:28]} d6 {[%emt 0:00:06]} 7. Nd5 {[%emt 0:00:31]} Nxd5 {[%emt 0:00:06]} 8. exd5 {[%emt 0:00:31]} Nb8 {[%emt 0:00:05]} 9. c4 {[%emt 0:00:29]} a6 {[%emt 0:00:07]} 10. Qa4 {[%emt 0:00:41]} Nd7 {[%emt 0:00:08] [#]} 11. c5 $1 {[%emt 0:00:24]} dxc5 {[%emt 0:00:43]} 12. d6 {[%emt 0:00:14]} axb5 {[%emt 0:00:18] White has an edge.} 13. Qxa8 {[%emt 0:00:08]} Bxd6 {[%emt 0:00:08]} 14. Bxb5 {[%emt 0:00:28]} O-O {[%emt 0:02:43]} 15. O-O {[%emt 0:00:20]} Qc7 {[%emt 0:25:48]} 16. Qa4 {[%emt 0:01:42]} Nb6 {[%emt 0:05:37]} 17. Qc2 {[%emt 0:09:25]} Be6 {[%emt 0:04:18]} 18. Bd2 {[%emt 0:03:23]} Qe7 {[%emt 0:05:05]} (18... Ra8 $142) 19. Rfe1 $16 {[%emt 0:02:43]} Rc8 {[%emt 0:06:18]} 20. Bc3 {[%emt 0:10:14]} Qg5 {[%emt 0:12:51]} (20... Qc7 $16 21. Qe2 f6) 21. Qd2 {[%emt 0:02:55]} ({White should play} 21. Rad1 $18 Bd5 22. Bf1) 21... Qxd2 {[%emt 0:05:15]} 22. Bxd2 {[%emt 0:00:02]} Bc4 {[%emt 0:02:51]} 23. Bxc4 {[%emt 0:02:20]} Nxc4 {[%emt 0:00:03]} 24. Bc3 {[%emt 0:00:14] And now Rad1 would win.} f6 {[%emt 0:01:11]} 25. Rac1 {[%emt 0:08:36]} Kf7 {[%emt 0:01:27]} 26. b3 {[%emt 0:06:59]} Nb6 {[%emt 0:02:54]} 27. Rcd1 {[%emt 0:02:26]} Rc6 {[%emt 0:00:30]} 28. g3 {[%emt 0:04:58]} Ke6 {[%emt 0:05:43]} 29. f4 {[%emt 0:06:47] White is more active.} c4 {[%emt 0:01:12]} 30. Bd4 {[%emt 0:03:24]} (30. fxe5 $16 fxe5 31. bxc4) 30... c3 {[%emt 0:01:07]} 31. fxe5 {[%emt 0:07:33]} fxe5 {[%emt 0:00:39]} 32. Bxb6 {[%emt 0:05:33]} (32. Rc1 $5 Nd5 $8 33. Re2 $14) 32... Rxb6 $11 {[%emt 0:00:04][%mdl 4096] Endgame. KRR-KRB} 33. Kg2 {[%emt 0:03:15]} Rc6 {[%emt 0:03:43] [#] aiming for ...c2.} (33... c2 $2 34. Rc1 $18) 34. Re2 {[%emt 0:00:54]} Bc5 {[%emt 0:01:58][%cal Oc5d4]} (34... c2 $2 35. Rc1 $18) 35. Kf3 {[%emt 0:02:31]} Bd4 {[%emt 0:01:29]} 36. Ke4 $1 {[%emt 0:01:46]} (36. Rxd4 c2 37. Re1 c1=Q (37... c1=R 38. Rxc1 Rxc1 39. Rb4 $14) 38. Rxc1 Rxc1) 36... Rd6 {[%emt 0:01:12]} ({Don't go for} 36... c2 $2 37. Rc1 $18) 37. Kd3 {[%emt 0:01:49]} Ra6 {[%emt 0:01:29]} 38. a4 {[%emt 0:02:28]} Kd5 {[%emt 0:02:25]} 39. Rf1 {[%emt 0:01:40]} Rb6 {[%emt 0:05:15]} 40. Kc2 {[%emt 0:00:34] Threatens to win with Rf7.} e4 $2 {[%emt 0:01:11]} (40... Ra6 $1 $14) 41. Rf8 {[%emt 0:03:20]} Bf6 {[%emt 0:01:13]} (41... e3 {was necessary.} 42. Rf5+ Ke4 43. Rf4+ Kd5) 42. Rc8 {[%emt 0:01:25] Weighted Error Value: White=0.13 (very precise) /Black=0.27 (precise) .  Loses game:     	---       	Black=1      Mistake:       	White=2     	Black=3      Inaccurate:     	White=1     	Black=3      OK:         	White=15    	Black=10     Best:        	White=2     	Black=1      Strong:       	White=1     	---} 1-0

[Event "RUDAR VI-GM 2024"]
[Site "Pozarevac"]
[Date "2024.02.12"]
[Round "2.1"]
[White "Krishna Teja, N."]
[Black "Volkov, Dmitriy"]
[Result "1-0"]
[ECO "E63"]
[WhiteElo "2349"]
[BlackElo "2268"]
[Annotator "TA"]
[PlyCount "83"]
[EventDate "2024.02.12"]
[EventType "tourn"]
[EventCountry "SRB"]
[SourceTitle "playchess.com"]
[Source "ChessBase"]
[SourceQuality "1"]
[TimeControl "5400+30"]

{[%evp 16,83,27,44,39,32,47,33,43,48,40,41,24,22,68,72,80,53,60,0,0,-35,0,-41,0,0,0,0,0,0,26,0,18,14,18,7,8,7,2,6,6,0,0,0,0,0,0,-17,-16,-22,-26,-39,-19,-40,-16,-30,-18,-25,106,106,107,113,280,272,273,273,277,265,265,266]} 1. d4 {[%emt 0:14:40]} Nf6 {[%emt 0:00:06]} 2. c4 {[%emt 0:00:15]} g6 {[%emt 0:00:06]} 3. g3 {[%emt 0:00:02]} Bg7 {[%emt 0:00:06]} 4. Bg2 {[%emt 0:00:06]} O-O {[%emt 0:00:15]} 5. Nc3 {[%emt 0:00:02]} d6 {[%emt 0:00:09]} 6. Nf3 {[%emt 0:00:06]} Nc6 {[%emt 0:00:06]} 7. O-O {[%emt 0:00:06]} a6 {[%emt 0:00:05]} 8. b3 {[%emt 0:00:52]} Rb8 {[%emt 0:00:05]} 9. d5 {[%emt 0:00:26]} Na5 {[%emt 0:00:10]} 10. Bg5 {[%emt 0:00:10]} c5 {[%emt 0:01:34]} 11. dxc6 $1 {[%emt 0:00:07]} Nxc6 {[%emt 0:00:09] White is slightly better.} 12. Rc1 {[%emt 0:00:14]} Bd7 {[%emt 0:13:17]} 13. Nd5 {[%emt 0:03:04]} Nxd5 {[%emt 0:07:50]} 14. cxd5 {[%emt 0:00:24]} Nb4 {[%emt 0:01:07]} (14... Ne5 $11) 15. Qd2 $14 {[%emt 0:01:37]} a5 {[%emt 0:00:20]} 16. a3 {[%emt 0:01:30]} Na6 {[%emt 0:00:08][%cal Bb4a6,Ba6c5,Bc5a4][%mdl 32]} 17. Qe3 {[%emt 0:02:07]} ({White should try} 17. Be3 $14) 17... Re8 $11 {[%emt 0:01:11]} 18. Rc4 {[%emt 0:00:10]} Rc8 {[%emt 0:13:13]} 19. Rfc1 {[%emt 0:02:57]} Rc5 {[%emt 0:17:09]} (19... Bb2 $5 20. Rxc8 Bxc8 $17) 20. Rxc5 {[%emt 0:04:11]} Nxc5 {[%emt 0:00:20]} 21. b4 {[%emt 0:00:27]} axb4 {[%emt 0:03:00]} 22. axb4 {[%emt 0:00:02]} Na4 {[%emt 0:01:08]} 23. Nd2 {[%emt 0:00:46]} f6 {[%emt 0:11:45]} 24. Bh6 {[%emt 0:00:44]} Qb6 {[%emt 0:00:18]} 25. Qxb6 {[%emt 0:09:11]} Nxb6 {[%emt 0:00:38]} 26. Bxg7 {[%emt 0:01:42]} Kxg7 {[%emt 0:00:21]} 27. Rc7 {[%emt 0:00:09]} Bc8 {[%emt 0:05:42]} 28. Nb3 {[%emt 0:01:13]} Na8 {[%emt 0:00:39]} 29. Rc1 {[%emt 0:01:51]} Bd7 {[%emt 0:00:07]} 30. Na5 {[%emt 0:00:07]} Rc8 {[%emt 0:00:11]} 31. Ra1 {[%emt 0:00:06]} Rc7 {[%emt 0:00:56]} 32. f4 {[%emt 0:03:15]} Nb6 {[%emt 0:02:17]} 33. Kf2 {[%emt 0:00:10]} f5 {[%emt 0:00:37]} 34. Ke1 {[%emt 0:02:14]} Bb5 {[%emt 0:01:19]} 35. Bf3 {[%emt 0:02:30]} Kf6 {[%emt 0:00:47]} 36. h4 {[%emt 0:01:50]} Ba6 {[%emt 0:02:12] [#]} (36... Be8 $11 {keeps the balance.}) 37. b5 $1 $16 {[%emt 0:02:46][%mdl 512]} Bxb5 {[%emt 0:01:25] [#]} 38. Rb1 $1 {[%emt 0:00:02]} Rc5 {[%emt 0:00:49] A mistake that costs the game.} (38... Bxe2 $16 39. Kxe2 Nxd5 40. Bxd5 Rc5 41. Rxb7 (41. Nxb7 Rxd5 42. Rb3 Rd4 $18) (41. Bxb7 Rxa5 42. Rb2 h6 $16) 41... Rxa5) 39. Nxb7 $18 {[%emt 0:00:30] White has a decisive advantage.} Rc7 {[%emt 0:00:23] [#]} 40. Nd8 $1 {[%emt 0:00:15]} ({Weaker is} 40. Nxd6 exd6 41. Rxb5 Nd7 $14) 40... Rc5 {[%emt 0:02:28]} 41. Ne6 {[%emt 0:00:09]} Rxd5 {[%emt 0:01:11]} 42. Nc7 {[%emt 0:01:07] Weighted Error Value: White=0.08 (flawless) /Black=0.24 (precise) .  Loses game:     	---       	Black=1      Mistake:       	White=1     	Black=2      Inaccurate:     	White=4     	Black=3      OK:         	White=8     	Black=17     Best:        	White=2     	---        Strong:       	White=3     	---        Brilliant:      	White=1     	---} ({Don't take} 42. Bxd5 $6 Nxd5 43. Ng5 Bxe2 $16) 1-0